bitfinex/quotes_ETHUSD_20240710
["timestamp","ask_amount","ask_price","bid_price","bid_amount"]
[1720611009722,0.20119983,3102.0,3100.7,2.4747]
[1720611009935,0.92070629,3101.9,3100.7,2.4747]
[1720611010153,0.20119983,3101.8,3100.7,2.4747]
[1720611010360,3.50586305,3102.1,3100.7,2.4747]
[1720611010526,0.2010944,3102.0,3100.7,2.4747]
[1720611010725,3.50586305,3102.1,3100.7,2.4747]
[1720611010961,0.20109902,3102.0,3100.7,2.4747]
[1720611011160,0.37069621,3101.9,3100.7,2.4747]
[1720611011556,2.2966,3101.8,3100.7,2.4747]
[1720611011726,0.55,3101.7,3100.7,2.4747]
[1720611011933,3.55,3101.7,3100.7,2.4747]
[1720611012329,0.37069621,3101.9,3100.7,2.4747]
[1720611012662,1.63,3101.8,3100.8,1.33316142]
[1720611013032,1.63,3101.8,3100.9,2.2701]
[1720611013659,1.08,3101.6,3100.9,2.2701]
[1720611015640,1.08,3101.6,3101.0,0.05671508]
[1720611015962,3.3552,3101.6,3101.0,0.05671508]
[1720611016155,1.08,3101.4,3101.0,0.05671508]
[1720611016362,0.55,3101.3,3101.0,0.05671508]
[1720611016661,0.55,3101.3,3101.1,0.05665934]
[1720611016868,1.08,3101.4,3100.6,2.2588]
[1720611017032,1.08,3101.6,3101.2,0.05665934]
[1720611017231,1.08,3101.7,3101.2,2.2996]
[1720611017545,1.08,3101.7,3101.3,0.05669384]
[1720611018084,1.08,3101.7,3101.4,0.05669384]
[1720611018271,1.08,3101.7,3100.9,2.3496]
[1720611018578,1.08,3101.7,3101.5,0.05669384]
[1720611018735,1.08,3101.7,3100.9,2.3496]
[1720611018939,1.08,3101.7,3101.6,0.05669384]
[1720611019137,1.63,3101.7,3100.9,2.3496]
[1720611019363,0.55,3101.7,3101.0,0.33197]
[1720611019568,1.63,3101.9,3101.1,0.05663281]
[1720611019970,1.63,3101.9,3100.9,2.3496]
[1720611020218,0.55,3101.9,3101.0,0.05663281]
[1720611020372,3.0,3102.0,3101.1,2.2849]
[1720611020571,3.0,3102.3,3101.2,0.34215328]
[1720611020865,3.0,3102.3,3101.4,2.4788]
[1720611021099,3.0,3102.3,3101.5,0.06447522]
[1720611021317,0.50586454,3102.4,3101.5,0.12105494]
[1720611021480,0.50586454,3102.4,3101.5,0.05657972]
[1720611021681,0.50586454,3102.4,3101.6,0.25353797]
[1720611022010,0.50586454,3102.4,3101.6,0.31009646]
[1720611024506,0.50586454,3102.4,3101.6,0.05655849]
[1720611025004,0.50586454,3102.4,3101.7,0.05655849]
[1720611025209,0.50586454,3102.4,3101.4,2.4788]
[1720611025410,0.50586454,3102.4,3101.5,0.05655849]
[1720611025411,2.4113,3102.2,3101.5,0.05655849]
[1720611025659,0.84613,3102.1,3100.9,2.4081]
[1720611025787,0.84613,3102.1,3101.6,0.05646827]
[1720611026105,0.84613,3102.1,3100.9,2.4081]
[1720611026313,0.55,3102.1,3101.7,0.05647092]
[1720611026490,0.55,3102.3,3100.9,2.4081]
[1720611026987,0.55,3102.3,3101.0,0.0564895]
[1720611027979,0.55,3102.3,3101.1,2.4491]
[1720611028176,0.55,3102.3,3101.2,0.0564895]
[1720611028382,0.55,3102.3,3101.2,0.30704845]
[1720611028897,0.50586454,3102.4,3101.3,2.4491]
[1720611029290,0.50586454,3102.4,3101.5,2.4491]
[1720611029517,0.50586454,3102.4,3101.5,2.51357226]
[1720611029916,0.50586454,3102.4,3101.6,0.05638333]
[1720611032443,0.50586454,3102.4,3101.6,0.12085311]
[1720611032645,0.50586454,3102.4,3101.8,2.4526]
[1720611033160,0.50586454,3102.4,3101.9,0.05634618]
[1720611036672,2.80346454,3102.4,3101.9,0.05634618]
[1720611036835,3.55,3102.3,3101.9,0.05634618]
[1720611037034,3.55,3102.3,3101.4,2.2886]
[1720611037363,3.55,3102.3,3102.0,0.05633292]
[1720611037663,3.55,3102.3,3102.1,0.05633292]
[1720611038042,3.55,3102.3,3101.4,2.2886]
[1720611038244,3.0,3102.3,3102.2,0.05633292]
[1720611038579,3.0,3102.3,3101.7,0.9701]
[1720611038868,0.50586454,3102.4,3101.9,2.3526]
[1720611039166,2.4231,3103.0,3102.0,0.2473413]
[1720611039379,2.592,3103.5,3102.1,0.06446306]
[1720611039680,0.50570331,3102.9,3102.1,0.06446306]
[1720611040182,0.50570331,3102.9,3102.2,0.05621087]
[1720611040862,1.08,3102.7,3101.9,2.3526]
[1720611041065,1.08,3102.7,3102.3,0.05621087]
[1720611041276,0.50570331,3102.9,3101.9,2.3526]
[1720611041434,1.08,3102.7,3102.4,0.05621087]
[1720611041632,1.08,3102.7,3101.9,2.3526]
[1720611041941,1.08,3102.7,3102.5,0.05621087]
[1720611042142,1.58570331,3102.9,3101.9,3.4326]
[1720611042463,0.50570331,3102.9,3102.1,1.08]
[1720611043046,1.58570331,3102.9,3102.2,0.05612599]
[1720611043447,1.58570331,3102.9,3102.0,0.34326]
[1720611043767,1.58570331,3102.9,3102.3,0.05612599]
[1720611043946,1.58570331,3102.9,3102.0,0.34326]
[1720611044141,1.58570331,3102.9,3102.4,0.05612599]
[1720611044343,1.58570331,3102.9,3101.9,3.4326]
[1720611044558,1.58570331,3102.9,3102.5,0.05612599]
[1720611044753,1.58570331,3102.9,3101.9,3.4326]
[1720611044967,1.58570331,3102.9,3102.6,0.05612599]
[1720611045170,1.58570331,3102.9,3101.9,3.4326]
[1720611045369,1.58570331,3102.9,3102.0,0.34326]
[1720611045551,1.58570331,3102.9,3102.1,0.05611008]
[1720611046265,0.50570331,3102.9,3102.1,1.13611008]
[1720611046467,0.50570331,3102.9,3102.2,2.4149]
[1720611046993,0.50570331,3102.9,3102.3,0.05609947]
[1720611047700,1.08,3103.1,3102.3,0.05609947]
[1720611047998,1.08,3102.9,3102.3,0.05609947]
[1720611051964,1.488,3103.1,3102.3,0.05609947]
[1720611052502,1.08,3103.1,3102.3,0.05609947]
[1720611053096,4.08,3103.3,3102.4,2.4953]
[1720611053420,1.08,3103.5,3102.5,1.08]
[1720611053566,0.55,3103.4,3102.5,1.13595624]
[1720611053768,0.55,3103.4,3102.5,1.49908186]
[1720611053964,0.55,3103.4,3102.5,1.56353631]
[1720611054196,0.55,3103.4,3102.6,2.4953]
[1720611054512,0.55,3103.4,3102.7,0.05590585]
[1720611054919,1.08,3103.5,3102.7,0.05590585]
[1720611055215,3.0,3103.6,3102.7,0.05590585]
[1720611055216,1.08,3103.3,3102.7,0.05590585]
[1720611057327,1.08,3103.5,3102.7,0.05590585]
[1720611057634,3.0,3103.6,3103.1,1.08]
[1720611057787,0.5056787,3103.8,3103.2,0.06444319]
[1720611057985,0.5056787,3103.8,3103.3,2.2669]
[1720611058423,0.5056787,3103.8,3103.4,0.05586873]
[1720611060927,1.08,3104.1,3103.4,0.05586873]
[1720611061118,0.55,3104.0,3103.4,0.05586873]
[1720611061857,3.5325,3103.8,3103.4,0.05586873]
[1720611062013,1.08,3103.6,3103.4,0.05586873]
[1720611062210,2.4525,3103.5,3102.9,0.9701]
[1720611062461,1.08,3103.0,3102.9,0.9701]
[1720611062754,1.08,3103.0,3102.4,0.9701]
[1720611062972,1.08,3102.6,3101.6,3.3123]
[1720611063260,1.08,3102.2,3101.6,2.3422]
[1720611063618,1.08,3102.0,3101.1,0.9701]
[1720611063963,2.349,3102.3,3101.1,0.9701]
[1720611063964,1.08,3101.8,3101.1,0.9701]
[1720611064114,1.08,3101.8,3100.8,3.5298]
[1720611064314,1.08,3101.8,3100.9,0.35298]
[1720611064578,0.55,3101.9,3100.9,0.35298]
[1720611064753,3.0,3102.2,3100.9,0.35298]
[1720611064754,0.55,3102.1,3100.9,0.35298]
[1720611067028,0.55,3102.1,3101.0,0.06448457]
[1720611067227,3.0,3102.2,3101.0,0.06448457]
[1720611067456,2.3535,3102.7,3101.0,0.06448457]
[1720611067457,5.3535,3102.7,3101.0,0.06448457]
[1720611067759,0.76841296,3102.6,3101.0,0.06448457]
[1720611067952,0.20073498,3102.5,3101.0,0.06448457]
[1720611068160,3.56764,3102.6,3101.0,0.06448457]
[1720611068319,0.20073485,3102.5,3100.9,0.41745355]
[1720611069149,0.55,3102.4,3100.9,0.41745355]
[1720611069355,0.55,3102.4,3101.0,0.28672536]
[1720611069580,0.55,3102.5,3101.0,0.28672536]
[1720611071963,0.55,3102.5,3101.1,2.4523]
[1720611073937,0.55,3102.5,3101.2,0.0644728]
[1720611074262,0.55,3102.5,3101.0,0.28672536]
[1720611074263,2.4038,3103.1,3101.3,2.51677274]
[1720611074470,2.592,3103.3,3101.6,2.4523]
[1720611074644,2.4038,3103.6,3101.8,2.4523]
[1720611074645,0.20044453,3103.2,3101.8,2.4523]
[1720611074961,0.20044453,3103.5,3101.9,0.0644618]
[1720611075162,0.97733922,3103.5,3102.0,0.25167618]
[1720611075371,0.97733922,3103.5,3102.1,0.06446134]
[1720611075372,0.20044453,3103.4,3102.1,0.06446134]
[1720611076066,0.55,3103.3,3102.1,0.06446134]
[1720611076369,0.20044453,3103.2,3102.0,0.25167618]
[1720611076668,0.55,3103.1,3102.0,0.31613752]
[1720611076875,0.55,3103.1,3102.1,0.05253323]
[1720611077035,2.592,3103.3,3102.1,0.05253323]
[1720611077230,3.75046237,3103.2,3101.8,2.4523]
[1720611077569,3.55,3103.2,3101.8,2.4523]
[1720611077737,0.6142,3103.1,3101.9,0.24523]
[1720611078064,0.55,3103.0,3101.9,0.24523]
[1720611081037,0.55,3103.0,3101.8,2.4523]
[1720611081268,0.20058983,3102.9,3101.8,2.4523]
[1720611081570,0.20058983,3102.9,3101.4,0.9701]
[1720611081571,2.8194,3102.8,3101.4,0.9701]
[1720611081776,0.20061558,3102.7,3101.4,0.9701]
[1720611081986,0.85200156,3102.6,3101.5,0.05232149]
[1720611082476,0.20069808,3102.5,3101.5,0.05232149]
[1720611082681,0.55,3102.4,3101.5,0.05232149]
[1720611082967,0.85200156,3102.6,3101.5,0.05232149]
[1720611083174,0.55,3102.6,3101.6,2.2765]
[1720611083646,0.55,3102.7,3101.6,2.2765]
[1720611084047,0.55,3102.7,3101.7,0.05232149]
[1720611090351,2.4998,3103.4,3101.8,2.482]
[1720611090555,0.35504122,3103.3,3101.8,2.482]
[1720611090855,0.55554514,3103.3,3101.9,0.05232149]
[1720611091053,0.20046866,3103.2,3101.8,2.482]
[1720611091254,0.55550988,3103.3,3101.8,2.482]
[1720611091455,0.30553099,3103.2,3101.9,0.2482]
[1720611091767,0.50599965,3103.2,3101.9,0.2482]
[1720611091966,0.55,3103.1,3101.9,0.2482]
[1720611095394,2.7925746,3103.0,3101.8,2.482]
[1720611095554,3.55,3102.9,3101.8,2.482]
[1720611096791,3.0,3102.8,3101.8,2.482]
[1720611096992,0.55,3102.7,3101.8,2.482]
[1720611097275,0.55,3102.7,3101.9,0.2482]
[1720611097502,0.55,3102.7,3101.9,0.30053472]
[1720611098073,0.30553099,3103.2,3101.9,0.30053472]
[1720611098270,0.55,3103.1,3101.9,0.2482]
[1720611098451,0.20059667,3103.0,3101.9,0.2482]
[1720611098771,0.55,3102.9,3101.9,0.2482]
[1720611099286,0.55,3103.1,3101.9,0.2482]
[1720611099598,0.20059745,3103.0,3101.9,0.2482]
[1720611099787,0.55,3102.9,3101.9,0.2482]
[1720611100175,0.55,3103.1,3101.9,0.2482]
[1720611100476,0.20058609,3103.0,3101.8,2.482]
[1720611100784,0.55,3102.9,3101.8,2.482]
[1720611101296,0.55,3103.1,3101.8,2.482]
[1720611101490,0.20053628,3103.0,3101.8,2.482]
[1720611101666,0.55,3102.9,3101.8,2.482]
[1720611101865,0.55,3102.9,3101.9,0.2482]
[1720611102095,0.55,3103.1,3102.0,2.4277]
[1720611102302,0.20053591,3103.0,3102.0,2.4277]
[1720611102606,0.55,3102.9,3102.0,2.48003472]
[1720611103203,0.30553099,3103.2,3102.0,2.48003472]
[1720611103204,0.55,3103.1,3102.0,2.48003472]
[1720611103388,0.20053427,3103.0,3102.0,2.75285819]
[1720611103697,0.55,3102.9,3102.0,2.75285819]
[1720611104196,0.55,3103.1,3102.0,2.75285819]
[1720611104408,0.20053602,3103.0,3102.0,2.75285819]
[1720611104695,0.55,3102.9,3102.0,2.75285819]
[1720611104898,0.55,3102.9,3102.1,0.27528582]
[1720611105086,0.2005329,3102.8,3102.1,0.27528582]
[1720611105293,0.2005329,3103.0,3102.1,0.27528582]
[1720611105504,0.2005329,3103.0,3102.0,2.4277]
[1720611105505,0.55,3102.9,3102.2,0.05233472]
[1720611105799,0.2005329,3102.8,3102.2,0.05233472]
[1720611105975,0.2005329,3102.8,3102.0,2.4277]
[1720611106302,0.2005329,3102.8,3102.3,0.05233472]
[1720611106501,0.55,3102.7,3101.5,0.9701]
[1720611106704,0.2005689,3102.6,3102.1,0.05233472]
[1720611106883,0.2005689,3102.6,3101.6,2.31]
[1720611106884,0.55,3102.5,3101.6,2.31]
[1720611107200,0.55,3102.5,3101.7,0.32801]
[1720611107393,0.55,3102.6,3101.7,0.32801]
[1720611107592,0.55,3102.6,3101.8,0.05236649]
[1720611107792,0.20056968,3102.5,3101.8,0.05236649]
[1720611107992,0.55,3102.4,3101.6,2.31]
[1720611108191,0.55,3102.4,3101.9,0.05241677]
[1720611108367,0.20067033,3102.3,3101.6,2.31]
[1720611108572,0.55,3102.2,3101.2,2.3333]
[1720611108814,0.20067033,3102.1,3101.7,0.05241677]
[1720611108969,0.20067033,3102.1,3101.2,2.3333]
[1720611108970,0.55,3102.0,3101.2,2.3333]
[1720611109171,0.20067033,3101.9,3101.8,0.05241677]
[1720611109370,0.75067033,3101.9,3101.2,2.3333]
[1720611109567,0.55,3101.8,3101.2,2.3333]
[1720611109770,0.92506703,3102.0,3101.2,2.3333]
[1720611110007,0.20077608,3101.9,3101.2,2.3333]
[1720611110207,0.55,3101.8,3101.2,2.3333]
[1720611110512,3.0,3102.2,3101.2,2.56663]
[1720611110672,0.75074518,3102.1,3101.2,2.56663]
[1720611110871,0.20074518,3102.0,3101.2,2.56663]
[1720611111073,0.2007599,3102.0,3101.2,2.56663]
[1720611111372,0.55,3102.1,3101.2,2.56663]
[1720611111573,0.20075866,3102.0,3101.3,0.256663]
[1720611111810,0.20075866,3102.3,3101.3,0.256663]
[1720611112133,0.55,3102.2,3101.3,0.256663]
[1720611112314,0.20075866,3102.1,3101.3,0.256663]
[1720611112474,0.55,3102.0,3101.3,0.256663]
[1720611113399,0.55,3102.0,3101.4,0.2589963]
[1720611115783,3.0,3102.5,3101.4,0.2589963]
[1720611116004,0.75075625,3102.4,3101.2,2.3333]
[1720611116205,0.20075625,3102.3,3101.2,2.3333]
[1720611116435,0.55,3102.2,3101.3,0.05241677]
[1720611116618,0.20075625,3102.1,3101.3,0.05241677]
[1720611117942,0.55,3102.2,3101.3,0.05241677]
[1720611118113,0.20074815,3102.1,3101.3,0.05241677]
[1720611118315,0.55,3102.0,3101.3,0.05241677]
[1720611118518,0.55,3102.0,3101.3,0.29098845]
[1720611119942,0.55,3102.0,3101.3,0.05241677]
[1720611120241,0.20087034,3101.9,3101.3,0.05241677]
[1720611120440,0.55,3101.8,3101.3,0.05241677]
[1720611120648,0.55,3101.8,3100.9,2.4971]
[1720611120649,0.20087034,3101.7,3100.9,2.4971]
[1720611120805,0.57595737,3101.7,3101.4,0.05276089]
[1720611121144,0.55,3101.6,3100.9,2.4971]
[1720611121441,0.55,3101.6,3101.5,0.05276089]
[1720611121641,0.75088819,3101.6,3100.9,2.4971]
[1720611121938,0.20094943,3101.5,3101.0,0.05279002]
[1720611122148,0.55,3101.4,3101.0,0.05279002]
[1720611122504,0.55,3101.6,3101.0,0.05279002]
[1720611123146,0.20096754,3101.5,3101.0,0.05279002]
[1720611123357,0.55,3101.4,3101.0,0.05279002]
[1720611123556,0.55,3101.6,3101.0,0.05279002]
[1720611124345,0.55,3101.6,3101.0,0.30777902]
[1720611124539,0.5058993,3101.7,3101.0,0.05279002]
[1720611124732,2.4738,3101.5,3100.6,2.3365]
[1720611125049,0.75087724,3101.4,3100.6,2.3365]
[1720611125253,0.20087724,3101.3,3100.6,2.3365]
[1720611125454,0.55,3101.2,3100.6,2.3365]
[1720611125830,0.55,3101.3,3100.6,2.3365]
[1720611126030,1.15238,3101.3,3100.6,2.3365]
[1720611128971,3.0,3101.6,3100.7,0.06449971]
[1720611129269,0.5058993,3101.7,3100.8,2.3251]
[1720611129635,0.5058993,3101.7,3100.9,0.05305482]
[1720611130961,0.5058993,3101.7,3101.0,2.4483]
[1720611131292,2.3074,3102.4,3101.2,2.4483]
[1720611131452,0.20065543,3102.3,3101.2,2.4483]
[1720611131650,0.50583554,3102.1,3101.2,2.4483]
[1720611131971,0.50583554,3102.1,3101.3,0.05296742]
[1720611132478,0.55,3102.0,3101.3,0.05296742]
[1720611133183,0.55,3102.0,3101.2,2.4483]
[1720611133364,0.55,3102.0,3100.8,2.3571]
[1720611133577,2.592,3101.7,3101.3,0.05291447]
[1720611133906,2.592,3101.7,3100.5,2.3571]
[1720611134088,3.55,3101.6,3100.5,2.3571]
[1720611134257,3.55,3101.6,3100.6,0.05291447]
[1720611134583,0.6142,3101.5,3100.6,0.05291447]
[1720611134899,0.55,3101.4,3100.6,0.05291447]
[1720611135282,3.0,3102.0,3100.6,0.11740641]
[1720611135596,0.55,3101.8,3100.6,0.05291447]
[1720611136300,0.55,3101.8,3100.7,2.44069304]
[1720611136500,0.55,3101.8,3100.8,0.24936075]
[1720611136662,0.55,3101.9,3100.8,0.30235995]
[1720611137258,0.55,3101.9,3100.8,0.36684851]
[1720611137458,0.55,3101.9,3100.9,2.3762]
[1720611137983,0.55,3101.9,3101.0,0.05298861]
[1720611138175,0.55,3101.9,3101.0,0.3272924]
[1720611138373,0.55,3101.9,3101.0,0.05298861]
[1720611138605,3.0,3102.0,3101.0,0.11747539]
[1720611138833,0.50583554,3102.1,3101.1,2.3762]
[1720611139122,0.50583554,3102.1,3101.2,0.05296742]
[1720611140090,0.55,3102.0,3101.2,0.05296742]
[1720611140287,0.50583554,3102.1,3101.3,0.24291674]
[1720611140521,0.50583554,3102.1,3101.4,2.32778205]
[1720611146954,0.50583554,3102.1,3101.6,2.3083]
[1720611147126,0.2005305,3102.7,3101.8,2.3083]
[1720611147323,15.46772011,3103.3,3101.9,0.30174544]
[1720611147324,0.50606149,3103.2,3101.9,0.30174544]
[1720611147540,0.50574622,3102.5,3101.9,0.30174544]
[1720611147735,0.30553099,3103.2,3102.0,0.0527238]
[1720611147736,0.20037598,3103.1,3102.0,0.0527238]
[1720611147943,0.50590697,3103.2,3101.9,0.06446837]
[1720611148130,0.50572875,3102.5,3101.9,0.06446837]
[1720611148326,0.20037598,3103.0,3102.0,0.05268674]
[1720611148636,0.50571487,3102.5,3102.1,2.3083]
[1720611148840,0.50571487,3102.5,3102.2,0.06446239]
[1720611149011,0.2002818,3103.1,3102.2,0.11714913]
[1720611149210,0.50568691,3103.0,3102.2,0.11714913]
[1720611150454,0.50568691,3103.0,3102.2,0.3070073]
[1720611150616,0.50568691,3103.0,3102.3,0.06446188]
[1720611150817,0.50568691,3103.0,3102.2,0.24254491]
[1720611151013,0.50568691,3103.0,3102.4,0.05233736]
[1720611151352,0.50568691,3103.0,3102.2,0.24254491]
[1720611151519,0.50568691,3103.0,3102.5,0.05233736]
[1720611151714,0.50568691,3103.0,3102.2,0.24254491]
[1720611151917,0.50568691,3103.0,3102.3,0.30742185]
[1720611152250,0.50568691,3103.0,3102.3,0.25508449]
[1720611152547,0.50568691,3103.0,3102.1,2.3083]
[1720611152734,2.8128,3102.9,3102.1,2.3083]
[1720611153245,3.20025124,3102.8,3101.8,2.4685]
[1720611153451,0.75025124,3102.7,3101.7,0.9701]
[1720611153665,2.592,3102.4,3101.9,0.05235589]
[1720611153970,3.20025124,3102.3,3101.7,0.9701]
[1720611154170,2.3413,3102.1,3102.0,0.05235589]
[1720611156781,0.55,3102.4,3101.1,2.2667]
[1720611156939,0.55,3102.4,3101.2,0.29114748]
[1720611157141,0.55,3102.6,3101.3,0.06447743]
[1720611157468,3.0,3102.7,3101.3,2.3014]
[1720611157660,0.20033947,3102.6,3101.3,2.3014]
[1720611157848,0.20033947,3102.7,3101.3,2.3014]
[1720611158052,0.20034496,3102.7,3101.4,0.252807]
[1720611158640,0.55,3102.6,3101.4,0.252807]
[1720611159065,3.0,3102.9,3101.4,0.252807]
[1720611159066,0.55,3102.8,3101.4,0.252807]
[1720611159264,0.2003035,3102.7,3101.4,0.252807]
[1720611159469,0.2003035,3102.7,3101.5,0.06447065]
[1720611159470,0.55,3102.6,3101.5,0.06447065]
[1720611159654,0.55,3102.6,3101.6,2.3132]
[1720611159856,0.55,3102.8,3101.7,0.23776707]
[1720611160173,0.55,3102.8,3101.7,0.29023412]
[1720611161884,0.55,3102.8,3101.7,0.35470475]
[1720611162183,0.55,3102.8,3101.8,0.06447063]
[1720611162585,0.55,3102.8,3101.9,0.05246705]
[1720611162747,0.355,3102.7,3101.9,0.05246705]
[1720611162941,0.55,3102.6,3101.9,0.05246705]
[1720611163484,0.55,3102.6,3101.7,0.23776707]
[1720611163656,0.55,3102.6,3102.0,0.05246705]
[1720611163975,0.55,3102.6,3102.1,0.05246705]
[1720611164174,0.55,3102.6,3101.6,3.2833]
[1720611164377,0.55,3102.6,3102.2,0.0525385]
[1720611164583,0.55,3102.6,3101.6,3.2833]
[1720611164744,0.55,3102.6,3102.3,0.0525385]
[1720611164944,0.55,3102.6,3101.6,3.2833]
[1720611165144,0.55,3102.6,3101.7,0.0525385]
[1720611166658,0.55,3102.6,3101.7,0.38612235]
[1720611175195,0.55,3102.6,3101.7,0.0525385]
[1720611175658,0.55,3102.6,3101.8,2.2676]
[1720611175859,0.55,3102.6,3101.9,0.06446869]
[1720611176257,0.55,3102.6,3102.0,0.05255969]
[1720611178658,0.55,3102.8,3102.0,0.05255969]
[1720611178883,0.20025993,3102.7,3102.0,0.05255969]
[1720611179197,0.55,3102.6,3101.9,0.06446869]
[1720611179596,0.55,3102.7,3102.0,0.05255969]
[1720611179899,0.55,3102.7,3102.0,0.29102253]
[1720611180058,0.55,3102.8,3102.0,0.3029286]
[1720611180257,0.20022805,3102.7,3102.1,0.0525544]
[1720611180458,0.20022805,3102.7,3102.0,0.3029286]
[1720611180665,0.20022805,3102.8,3102.0,0.3029286]
[1720611181192,0.20020134,3102.8,3102.0,0.3029286]
[1720611181567,0.20017447,3102.8,3102.0,0.3029286]
[1720611182074,0.20017447,3102.8,3102.1,2.4235]
[1720611182322,0.50568691,3103.0,3102.0,0.3029286]
[1720611182323,0.70586138,3103.0,3102.3,2.4235]
[1720611182467,0.20017447,3102.9,3102.3,2.4235]
[1720611182670,0.50568691,3103.0,3102.3,2.4235]
[1720611188195,0.70567221,3103.0,3102.3,2.4235]
[1720611188503,0.50568691,3103.0,3102.3,2.4235]
[1720611190804,1.079,3102.9,3102.3,2.4235]
[1720611191203,1.079,3102.9,3102.4,0.05233208]
[1720611191870,0.50568691,3103.0,3102.4,0.05233208]
[1720611192378,0.50568691,3103.0,3102.5,2.4706]
[1720611192698,0.50568691,3103.0,3102.7,2.4706]
[1720611192898,0.50568691,3103.0,3102.8,0.06445109]
[1720611193203,0.50568691,3103.0,3102.9,0.05229768]
[1720611194305,1.079,3103.5,3102.9,0.05229768]
[1720611194507,0.50561059,3103.4,3102.9,0.05229768]
[1720611194674,0.50561059,3103.4,3102.7,2.4706]
[1720611194875,0.50561059,3103.4,3103.0,0.05217862]
[1720611195079,0.50561059,3103.4,3102.8,0.24706]
[1720611195276,0.50561059,3103.4,3103.1,0.05217862]
[1720611195617,0.50561059,3103.4,3102.8,0.24706]
[1720611195618,0.50561059,3103.4,3103.2,0.05217862]
[1720611195815,0.50561059,3103.4,3102.8,0.24706]
[1720611196114,0.50561059,3103.4,3103.3,0.05217862]
[1720611196280,0.50561059,3103.4,3102.9,0.271766]
[1720611196690,0.50561059,3103.4,3103.0,0.05217598]
[1720611208016,0.50561059,3103.4,3103.1,2.4798]
[1720611208198,0.50561059,3103.4,3103.1,2.53177755]
[1720611208548,0.50561059,3103.4,3103.1,2.81213191]
[1720611209633,0.50561059,3103.4,3103.1,0.05197755]
[1720611210046,3.50561059,3103.4,3102.6,2.2527]
[1720611210210,3.50561059,3103.4,3103.2,0.05197226]
[1720611210419,3.50561059,3103.4,3102.6,2.2527]
[1720611210621,3.50561059,3103.4,3103.3,0.05197226]
[1720611210823,4.10166165,3103.4,3102.6,2.2527]
[1720611211102,3.50561059,3103.4,3102.6,2.2527]
[1720611211305,3.50561059,3103.4,3102.7,0.05197226]
[1720611213709,0.50561059,3103.4,3102.7,0.05197226]
[1720611213911,0.50561059,3103.4,3102.7,0.11642418]
[1720611214107,0.50561059,3103.4,3102.8,2.4345]
[1720611214312,0.50561059,3103.4,3102.9,0.31308961]
[1720611214510,2.3497,3104.1,3103.0,2.3704]
[1720611214710,2.3497,3104.1,3103.3,1.079]
[1720611214958,0.50552332,3104.0,3103.3,1.079]
[1720611215145,0.50552332,3104.0,3103.4,0.0519802]
[1720611215453,0.50552332,3104.0,3103.5,2.3704]
[1720611215632,0.50552332,3104.0,3103.5,2.42237491]
[1720611216943,0.50552332,3104.0,3103.5,0.05197491]
[1720611217308,0.50552332,3104.0,3103.2,2.3672]
[1720611217515,0.50552332,3104.0,3103.3,0.23672]
[1720611217713,0.50552332,3104.0,3103.3,0.28861028]
[1720611219609,0.50552332,3104.0,3103.4,0.06443535]
[1720611219839,0.50552332,3104.0,3103.4,0.11630183]
[1720611220844,0.50552332,3104.0,3103.5,2.3611]
[1720611221049,0.50552332,3104.0,3103.6,0.31217133]
[1720611221257,3.0,3104.6,3103.6,0.36402723]
[1720611221463,2.4061,3104.7,3103.6,0.36402723]
[1720611221663,0.50543957,3104.5,3103.6,0.36402723]
[1720611221833,0.50543957,3104.5,3103.7,2.3514]
[1720611222165,0.50543957,3104.5,3103.8,0.27154272]
[1720611222365,0.50543957,3104.5,3103.8,0.32339862]
[1720611222720,0.50543957,3104.5,3103.8,0.0518559]
[1720611222925,2.3643,3104.4,3103.8,0.0518559]
[1720611223125,5.9143,3104.4,3103.8,0.0518559]
[1720611223349,5.9143,3104.4,3103.4,2.4795]
[1720611223562,5.9143,3104.4,3103.9,0.05173693]
[1720611223723,0.64197396,3104.3,3103.4,2.4795]
[1720611223922,3.0,3104.3,3104.0,0.05173693]
[1720611224141,3.0,3104.3,3103.4,2.4795]
[1720611224336,3.0,3104.3,3104.1,0.05173693]
[1720611224658,3.0,3104.3,3104.2,0.05173693]
[1720611224821,3.55,3104.3,3103.4,2.4795]
[1720611225023,3.0,3104.3,3104.2,0.05173693]
[1720611225332,3.55,3104.3,3103.4,2.4795]
[1720611225536,3.0,3104.3,3103.4,2.4795]
[1720611225738,3.0,3104.3,3103.5,0.05173693]
[1720611227687,3.0,3104.3,3103.6,2.3452]
[1720611227981,0.50543957,3104.5,3103.7,0.23969369]
[1720611228150,0.50543957,3104.5,3103.6,2.39673063]
[1720611228355,0.55,3104.4,3103.3,3.3903]
[1720611228555,0.55,3104.4,3103.7,0.05153063]
[1720611228763,0.55,3104.4,3103.3,3.3903]
[1720611228968,0.50543957,3104.5,3103.8,2.39243063]
[1720611229145,0.50543957,3104.5,3103.8,2.3409]
[1720611229349,0.50543957,3104.5,3103.9,0.05153063]
[1720611232084,0.50543957,3104.5,3103.9,0.1159563]
[1720611232286,0.50543957,3104.5,3103.9,0.05153063]
[1720611232529,0.50543957,3104.5,3104.0,0.23924306]
[1720611232864,0.50543957,3104.5,3104.1,0.0515412]
[1720611234950,0.50543957,3104.5,3104.1,0.11596545]
[1720611235559,0.50543957,3104.5,3104.1,0.0515412]
[1720611241664,3.09443957,3104.5,3104.1,0.0515412]
[1720611241864,2.3791,3104.3,3103.1,0.9701]
[1720611242123,0.74997011,3104.2,3103.1,0.9701]
[1720611242408,0.19997011,3104.1,3103.1,0.9701]
[1720611242594,0.55,3104.0,3103.1,0.9701]
[1720611242793,0.20000809,3103.9,3103.1,0.9701]
[1720611243104,0.55,3103.8,3103.1,0.9701]
[1720611243410,0.55,3103.8,3102.8,2.3561]
[1720611243594,0.55,3104.1,3102.9,0.33262]
[1720611243905,0.55,3104.1,3102.4,3.4285]
[1720611243906,2.59289135,3104.0,3102.4,3.4285]
[1720611244116,2.59289135,3104.0,3102.4,2.4584]